bitfinex/quotes_SOLUSD_20240717
["timestamp","ask_amount","ask_price","bid_price","bid_amount"]
[1721186673893,0.34,160.71,160.67,14.88]
[1721186674229,14.88,160.7,160.65,14.88]
[1721186674397,0.17,160.69,160.65,14.88]
[1721186674597,0.17,160.69,160.66,14.88]
[1721186675000,0.17,160.7,160.66,14.88]
[1721186677214,0.17,160.7,160.67,14.88]
[1721186677711,0.17,160.7,160.66,14.88]
[1721186678720,14.88,160.69,160.63,14.88]
[1721186678928,0.34,160.68,160.63,14.88]
[1721186681318,0.34,160.68,160.61,31.99266164]
[1721186681319,14.88,160.66,160.61,21.99266164]
[1721186681618,0.17,160.65,160.62,14.88]
[1721186681815,0.17,160.65,160.63,14.88]
[1721186684136,0.17,160.65,160.61,6.47696164]
[1721186684326,14.88,160.67,160.61,21.35696164]
[1721186684327,0.34,160.66,160.61,21.35696164]
[1721186685008,0.34,160.66,160.62,14.88]
[1721186686835,0.34,160.66,160.59,10.0]
[1721186687040,14.88,160.7,160.65,14.88]
[1721186687207,0.34,160.69,160.65,14.88]
[1721186687399,0.17,160.68,160.65,14.88]
[1721186687602,15.22,160.7,160.65,14.88]
[1721186690105,21.4429,160.7,160.65,14.88]
[1721186690305,14.88,160.69,160.64,14.88]
[1721186690529,0.34,160.68,160.64,14.88]
[1721186691722,0.34,160.68,160.62,14.88]
[1721186691922,0.34,160.68,160.58,6.47918011]
[1721186691923,14.88,160.67,160.58,6.47918011]
[1721186692121,0.17,160.66,160.62,14.88]
[1721186692327,0.34,160.66,160.62,14.88]
[1721186692827,14.88,160.65,160.58,6.47918011]
[1721186693035,0.34,160.64,160.6,14.88]
[1721186693430,0.17,160.64,160.61,14.88]
[1721186693613,0.34,160.65,160.61,14.88]
[1721186694011,0.34,160.65,160.59,1.24511461]
[1721186694236,14.88,160.67,160.59,1.24511461]
[1721186694237,0.34,160.66,160.62,14.88]
[1721186694815,15.22,160.66,160.61,14.88]
[1721186695239,0.34,160.66,160.62,14.88]
[1721186696640,0.34,160.66,160.61,14.88]
[1721186697147,15.22,160.66,160.61,14.88]
[1721186698249,15.22,160.66,160.6,14.88]
[1721186698620,14.88,160.65,160.6,14.88]
[1721186698821,0.17,160.64,160.6,14.88]
[1721186699552,15.22,160.64,160.58,6.47918011]
[1721186699735,15.22,160.64,160.59,14.88]
[1721186699935,0.34,160.64,160.6,14.88]
[1721186701753,0.34,160.64,160.59,14.88]
[1721186702238,15.22,160.64,160.59,14.88]
[1721186703655,0.34,160.64,160.6,14.88]
[1721186704652,0.34,160.64,160.59,14.88]
[1721186705031,15.22,160.64,160.59,14.88]
[1721186705951,0.34,160.64,160.59,14.88]
[1721186706151,0.34,160.64,160.6,14.88]
[1721186708129,15.22,160.64,160.59,14.88]
[1721186708331,15.22,160.64,160.57,16.6629]
[1721186708636,14.88,160.63,160.58,14.88]
[1721186708837,0.34,160.62,160.58,14.88]
[1721186709346,0.34,160.62,160.59,14.88]
[1721186709539,0.34,160.63,160.59,14.88]
[1721186709739,14.88,160.61,160.53,10.0]
[1721186709948,15.05,160.6,160.55,14.88]
[1721186710846,0.17,160.59,160.53,6.48792149]
[1721186711037,14.88,160.58,160.53,21.36792149]
[1721186711599,15.05,160.59,160.54,14.88]
[1721186711739,0.17,160.58,160.54,14.88]
[1721186711940,15.05,160.58,160.53,6.48792149]
[1721186712156,15.05,160.58,160.53,21.36792149]
[1721186712965,15.05,160.58,160.53,14.88]
[1721186714556,15.05,160.58,160.54,14.88]
[1721186715059,15.05,160.58,160.53,14.88]
[1721186715258,15.05,160.58,160.54,14.88]
[1721186715663,0.17,160.58,160.54,14.88]
[1721186717252,14.88,160.57,160.5,9.55354438]
[1721186717451,0.17,160.56,160.52,14.88]
[1721186718152,0.17,160.56,160.53,14.88]
[1721186718347,14.88,160.56,160.5,9.55354438]
[1721186718671,15.22,160.57,160.52,14.88]
[1721186718843,15.22,160.57,160.51,1.24583103]
[1721186719050,15.22,160.57,160.52,1.24580523]
[1721186719258,0.34,160.57,160.52,1.24580523]
[1721186719761,0.34,160.57,160.5,9.55354438]
[1721186720259,15.22,160.57,160.5,9.55354438]
[1721186720942,0.34,160.57,160.51,1.24581452]
[1721186721146,0.17,160.57,160.54,14.88]
[1721186721663,0.34,160.58,160.54,14.88]
[1721186721859,14.88,160.57,160.5,9.55354438]
[1721186722062,0.17,160.56,160.52,14.88]
[1721186725272,0.17,160.58,160.54,14.88]
[1721186725567,0.34,160.58,160.54,14.88]
[1721186726163,15.22,160.58,160.53,16.12572539]
[1721186726350,15.22,160.58,160.53,14.88]
[1721186726774,0.34,160.58,160.54,14.88]
[1721186727357,15.22,160.58,160.53,14.88]
[1721186727556,15.22,160.58,160.52,14.88]
[1721186727751,14.88,160.57,160.52,14.88]
[1721186727964,0.17,160.56,160.52,14.88]
[1721186728450,0.17,160.56,160.5,9.55354438]
[1721186728754,15.22,160.56,160.51,14.88]
[1721186728948,0.17,160.56,160.5,9.55354438]
[1721186729172,14.88,160.55,160.5,24.43354438]
[1721186729467,0.17,160.54,160.5,24.43354438]
[1721186730174,0.17,160.54,160.51,14.88]
[1721186730471,0.34,160.55,160.51,14.88]
[1721186730873,15.22,160.55,160.5,24.43354438]
[1721186731167,15.22,160.55,160.5,9.55354438]
[1721186731372,15.22,160.55,160.5,24.43354438]
[1721186734163,14.88,160.54,160.5,9.55354438]
[1721186734471,14.88,160.53,160.5,9.55354438]
[1721186737874,0.17,160.54,160.51,14.88]
[1721186738080,21.3045,160.55,160.51,14.88]
[1721186739197,14.88,160.53,160.5,9.55354438]
[1721186739378,0.17,160.52,160.5,9.55354438]
[1721186739567,14.88,160.53,160.5,9.55354438]
[1721186739766,15.05,160.54,160.5,9.55354438]
[1721186740086,15.05,160.53,160.5,9.55354438]
[1721186740273,0.17,160.53,160.5,9.55354438]
[1721186740790,15.05,160.53,160.5,9.55354438]
[1721186743282,0.17,160.53,160.5,9.55354438]
[1721186743507,0.17,160.54,160.5,24.43354438]
[1721186743672,0.34,160.54,160.5,24.43354438]
[1721186744198,15.22,160.54,160.5,9.55354438]
[1721186745183,14.88,160.53,160.5,9.55354438]
[1721186746102,14.88,160.51,160.5,9.55354438]
[1721186746469,6.569,160.54,160.5,9.55354438]
[1721186746668,14.88,160.51,160.5,9.55354438]
[1721186747369,14.88,160.52,160.5,9.55354438]
[1721186749685,14.88,160.53,160.5,9.55354438]
[1721186749883,15.22,160.54,160.5,9.55354438]
[1721186750795,6.2545,160.55,160.5,25.67959649]
[1721186751178,21.1345,160.55,160.5,25.67959649]
[1721186751399,6.074,160.59,160.51,14.88]
[1721186751603,14.88,160.57,160.52,14.88]
[1721186752386,6.074,160.59,160.53,1.24574345]
[1721186752587,6.074,160.59,160.55,14.88]
[1721186754890,20.954,160.59,160.54,14.88]
[1721186757295,20.954,160.59,160.55,1.2455684]
[1721186757476,20.954,160.59,160.54,14.88]
[1721186758305,27.1811,160.59,160.54,14.88]
[1721186758508,14.88,160.58,160.53,14.88]
[1721186759088,27.1811,160.59,160.54,16.12570027]
[1721186759300,27.1811,160.59,160.54,14.88]
[1721186759502,27.1811,160.59,160.53,14.88]
[1721186759503,14.88,160.58,160.53,14.88]
[1721186760187,14.88,160.57,160.52,14.88]
[1721186762887,14.88,160.57,160.5,9.55354438]
[1721186763089,14.88,160.57,160.52,14.88]
[1721186764015,14.88,160.57,160.5,24.43354438]
[1721186764016,14.88,160.55,160.5,24.43354438]
[1721186765599,22.6139,160.58,160.5,24.43354438]
[1721186765804,6.2284,160.56,160.5,9.55354438]
[1721186765993,15.05,160.55,160.5,24.43354438]
[1721186768901,6.3987,160.55,160.5,9.55354438]
[1721186769117,14.88,160.53,160.5,9.55354438]
[1721186769904,14.88,160.52,160.5,9.55354438]
[1721186770104,6.3987,160.55,160.5,9.55354438]
[1721186770414,14.88,160.53,160.5,9.55354438]
[1721186772314,14.88,160.52,160.5,9.55354438]
[1721186773226,0.17,160.54,160.5,9.55354438]
[1721186773520,14.88,160.51,160.5,9.55354438]
[1721186773822,15.22,160.51,160.5,9.55354438]
[1721186774925,14.88,160.51,160.5,9.55354438]
[1721186779617,14.88,160.52,160.5,9.55354438]
[1721186781030,6.2282,160.56,160.5,9.55354438]
[1721186781330,34.88,160.55,160.5,24.43354438]
[1721186781641,6.4318,160.58,160.51,1.2459474]
[1721186781848,14.88,160.55,160.51,1.2459474]
[1721186782210,12.6592,160.58,160.51,16.1259474]
[1721186782412,12.6592,160.58,160.52,16.12586064]
[1721186782717,14.88,160.57,160.52,16.12586064]
[1721186783020,14.88,160.56,160.51,14.88]
[1721186787239,14.88,160.55,160.5,39.70504438]
[1721186787538,14.88,160.56,160.51,14.88]
[1721186790127,14.88,160.59,160.51,20.0]
[1721186790331,14.88,160.6,160.55,14.88]
[1721186791118,14.88,160.6,160.56,14.88]
[1721186791327,14.88,160.61,160.56,14.88]
[1721186791532,20.0,160.6,160.56,14.88]
[1721186792046,14.88,160.62,160.57,16.12544132]
[1721186792847,21.1055,160.63,160.58,14.88]
[1721186793231,14.88,160.62,160.57,14.88]
[1721186793537,6.2255,160.63,160.55,15.8895]
[1721186793538,14.88,160.63,160.58,14.88]
[1721186793724,21.1059,160.62,160.57,14.88]
[1721186795439,14.88,160.62,160.55,15.8895]
[1721186795638,14.88,160.61,160.56,14.88]
[1721186796727,14.88,160.6,160.55,30.7695]
[1721186800626,24.9151,160.64,160.56,14.88]
[1721186800948,14.88,160.61,160.55,15.8895]
[1721186801122,14.88,160.62,160.57,14.88]
[1721186802246,20.0,160.63,160.59,14.88]
[1721186802726,34.88,160.63,160.58,16.12532579]
[1721186803433,34.88,160.63,160.58,14.88]
[1721186804248,20.0,160.63,160.58,14.88]
[1721186804447,14.88,160.63,160.58,14.88]
[1721186805248,20.0,160.64,160.59,14.88]
[1721186805422,14.88,160.64,160.59,14.88]
[1721186806836,41.1047,160.65,160.6,14.88]
[1721186807151,14.88,160.64,160.59,14.88]
[1721186808646,20.0,160.65,160.6,1.24528971]
[1721186808842,34.88,160.65,160.6,16.12528971]
[1721186809158,34.88,160.65,160.6,14.88]
[1721186809346,41.1047,160.65,160.6,14.88]
[1721186809857,34.88,160.65,160.6,14.88]
[1721186810148,6.2239,160.67,160.57,10.0]
[1721186810445,21.1039,160.67,160.62,14.88]
[1721186810927,14.88,160.68,160.63,14.88]
[1721186811133,6.2467,160.69,160.64,14.88]
[1721186811328,20.0,160.68,160.64,14.88]
[1721186811746,34.88,160.68,160.63,14.88]
[1721186811946,14.88,160.68,160.63,14.88]
[1721186812462,27.35,160.69,160.64,14.88]
[1721186812923,12.47,160.69,160.64,14.88]
[1721186813128,6.2236,160.68,160.64,14.88]
[1721186814035,27.3498,160.69,160.64,14.88]
[1721186815652,6.2236,160.68,160.61,16.6418]
[1721186815862,21.1036,160.68,160.63,14.88]
[1721186816857,14.88,160.66,160.61,16.6418]
[1721186817032,14.88,160.65,160.61,16.6418]
[1721186817344,21.1047,160.65,160.61,16.6418]
[1721186817546,14.88,160.64,160.61,16.6418]
[1721186817745,14.88,160.65,160.61,16.6418]
[1721186818740,14.88,160.66,160.61,31.5218]
[1721186820161,14.88,160.67,160.62,14.88]
[1721186820951,14.88,160.67,160.62,16.12499488]
[1721186821147,14.88,160.67,160.62,14.88]
[1721186821762,14.88,160.66,160.61,31.5218]
[1721186822139,14.88,160.66,160.62,1.24497701]
[1721186822370,14.88,160.66,160.61,31.5218]
[1721186822857,14.88,160.65,160.61,16.6418]
[1721186823051,14.88,160.66,160.61,31.5218]
[1721186827873,31.3299,160.69,160.61,31.5218]
[1721186828055,14.88,160.66,160.61,31.5218]
[1721186829557,6.4167,160.69,160.61,31.5218]
[1721186829752,14.88,160.67,160.61,16.6418]
[1721186829952,14.88,160.67,160.62,14.88]
[1721186830767,34.88,160.68,160.63,14.88]
[1721186830966,20.0,160.68,160.64,1.24490319]
[1721186831270,14.88,160.7,160.65,16.12482122]
[1721186831566,20.0,160.69,160.65,14.88]
[1721186832174,34.88,160.69,160.66,1.24473793]
[1721186832379,20.0,160.69,160.61,16.6418]
[1721186832676,14.88,160.68,160.63,14.88]
[1721186834379,14.88,160.7,160.65,14.88]
[1721186834577,34.88,160.69,160.65,16.12473789]
[1721186834877,34.88,160.69,160.65,14.88]
[1721186835371,24.778,160.73,160.65,14.88]
[1721186835671,14.88,160.68,160.63,14.88]
[1721186836275,14.88,160.69,160.64,14.88]
[1721186836684,6.2228,160.7,160.64,14.88]
[1721186836978,14.88,160.69,160.64,14.88]
[1721186837775,14.88,160.67,160.62,14.88]
[1721186839253,14.88,160.66,160.61,16.6418]
[1721186839453,14.88,160.66,160.61,31.5218]
[1721186839955,14.88,160.65,160.61,16.6418]
[1721186840166,6.2255,160.63,160.57,22.31861878]
[1721186840367,16.0474,160.67,160.58,14.88]
[1721186840565,14.88,160.64,160.6,14.88]
[1721186840772,20.0,160.66,160.6,14.88]
[1721186840773,14.88,160.65,160.6,14.88]
[1721186842356,14.88,160.64,160.59,14.88]
[1721186842876,14.88,160.64,160.57,15.8113]
[1721186843047,14.88,160.64,160.59,14.88]
[1721186843474,14.88,160.64,160.6,14.88]
[1721186844759,14.88,160.64,160.59,14.88]
[1721186848070,14.88,160.63,160.58,14.88]
[1721186848665,21.1051,160.64,160.59,14.88]
[1721186849668,14.88,160.62,160.57,30.6913]
[1721186851984,14.88,160.6,160.55,14.88]
[1721186853465,18.69,160.62,160.54,15.0427]
[1721186853674,14.88,160.56,160.52,6.49866877]
[1721186856875,6.227,160.59,160.52,6.49866877]
[1721186857073,14.88,160.56,160.52,6.49866877]
[1721186857474,14.88,160.55,160.52,6.49866877]
[1721186857678,14.88,160.55,160.5,9.55354438]
[1721186857985,25.2617,160.58,160.5,9.55354438]
[1721186857986,14.88,160.53,160.5,9.55354438]
[1721186859273,25.2617,160.58,160.5,9.55354438]
[1721186859274,6.2278,160.57,160.5,9.55354438]
[1721186859466,14.88,160.54,160.5,9.55354438]
[1721186860073,14.88,160.54,160.51,1.24589879]
[1721186860274,14.88,160.55,160.51,1.24589879]
[1721186860585,14.88,160.55,160.5,24.43354438]
[1721186860774,14.88,160.54,160.5,9.55354438]
[1721186861702,14.88,160.53,160.5,9.55354438]
[1721186866090,14.88,160.53,160.5,10.79950713]
[1721186866296,14.88,160.53,160.5,9.55354438]
[1721186866785,14.88,160.51,160.5,9.55354438]
[1721186867297,6.2295,160.53,160.5,9.55354438]
[1721186867600,14.88,160.51,160.5,9.55354438]
[1721186869095,6.569,160.54,160.5,9.55354438]
[1721186869384,34.88,160.53,160.5,9.55354438]
[1721186869589,12.7993,160.58,160.51,1.2459853]
[1721186869768,14.88,160.55,160.5,41.03204438]
[1721186870902,14.88,160.55,160.5,26.15204438]
[1721186871399,14.88,160.57,160.52,14.88]
[1721186871578,14.88,160.57,160.53,1.24571455]
[1721186871778,14.88,160.56,160.51,14.88]
[1721186872785,6.2271,160.59,160.51,14.88]
[1721186873005,25.3233,160.62,160.5,26.15204438]
[1721186873169,14.88,160.56,160.51,14.88]
[1721186873789,14.88,160.55,160.5,26.15204438]
[1721186873992,14.88,160.55,160.5,41.03204438]
[1721186874381,6.2286,160.55,160.5,26.15204438]
[1721186874572,14.88,160.53,160.5,26.15204438]
[1721186875392,14.88,160.51,160.5,9.55354438]
[1721186879587,6.2286,160.55,160.5,9.55354438]
[1721186879902,14.88,160.53,160.5,9.55354438]
[1721186880082,34.88,160.52,160.5,9.55354438]
[1721186880285,14.88,160.51,160.5,9.55354438]
[1721186880693,34.88,160.52,160.5,9.55354438]
[1721186882580,20.0,160.52,160.5,9.55354438]
[1721186882799,34.88,160.53,160.5,9.55354438]
[1721186883300,14.88,160.52,160.5,9.55354438]
[1721186883802,20.0,160.53,160.5,9.55354438]
[1721186884098,14.88,160.54,160.5,9.55354438]
[1721186884305,20.0,160.53,160.5,9.55354438]
[1721186884894,14.88,160.54,160.5,10.79943974]
[1721186885420,34.88,160.55,160.51,17.18131538]
[1721186885591,34.88,160.55,160.51,15.9355]
[1721186887591,6.0748,160.6,160.52,1.2457485]
[1721186887889,14.88,160.57,160.53,14.88]
[1721186888389,14.88,160.57,160.54,1.24562979]
[1721186888603,14.88,160.57,160.53,14.88]
[1721186888904,14.88,160.56,160.51,30.8155]
[1721186889592,14.88,160.55,160.51,15.9355]
[1721186891393,14.88,160.54,160.51,15.9355]
[1721186891726,14.88,160.55,160.51,15.9355]
[1721186892391,14.88,160.54,160.51,15.9355]
[1721186892803,14.88,160.55,160.51,15.9355]
[1721186893307,14.88,160.55,160.51,17.18136254]
[1721186894690,14.88,160.56,160.52,1.24585398]
[1721186895008,6.0748,160.6,160.52,14.88]
[1721186895199,46.2027,160.66,160.54,14.88]
[1721186895200,14.88,160.59,160.54,14.88]
[1721186895505,14.88,160.56,160.51,15.9355]
[1721186895808,14.88,160.56,160.52,1.24580839]
[1721186896010,14.88,160.56,160.51,30.8155]
[1721186896206,14.88,160.56,160.51,32.06124561]
[1721186896410,14.88,160.56,160.51,30.8155]
[1721186897293,6.2271,160.59,160.52,14.88]
[1721186897294,14.88,160.57,160.52,14.88]
[1721186899013,14.88,160.57,160.51,15.9355]
[1721186899227,14.88,160.56,160.51,15.9355]
[1721186899393,14.88,160.56,160.51,30.8155]
[1721186899599,14.88,160.56,160.52,1.24580704]
[1721186899807,14.88,160.56,160.51,30.8155]
[1721186900196,14.88,160.57,160.52,14.88]
[1721186900802,14.88,160.56,160.51,30.8155]
[1721186901001,18.69,160.63,160.51,15.9355]
[1721186901002,14.88,160.57,160.51,15.9355]
[1721186901318,14.88,160.57,160.52,14.88]
[1721186901996,14.88,160.57,160.51,15.9355]
[1721186902202,14.88,160.56,160.52,14.88]
[1721186902416,14.88,160.57,160.52,14.88]
[1721186902714,14.88,160.58,160.53,14.88]
[1721186903010,14.88,160.57,160.54,1.24564645]
[1721186903613,14.88,160.58,160.54,1.24564645]
[1721186903991,14.88,160.58,160.53,14.88]
[1721186904221,14.88,160.58,160.54,1.2456055]
[1721186904403,14.88,160.58,160.55,1.24557649]
[1721186904819,14.88,160.58,160.53,14.88]
[1721186905416,14.88,160.56,160.51,15.9355]
[1721186905711,14.88,160.56,160.51,30.8155]
[1721186905910,6.227,160.59,160.52,14.88]
[1721186906414,14.88,160.57,160.52,14.88]
[1721186906798,6.2265,160.61,160.53,16.12572753]
[1721186906993,20.0,160.6,160.54,14.88]
[1721186907212,34.88,160.6,160.55,14.88]
[1721186907422,34.88,160.6,160.55,16.1255562]
[1721186907592,34.88,160.6,160.55,14.88]
[1721186907794,14.88,160.59,160.52,1.24555608]
[1721186908015,14.88,160.57,160.51,30.8155]
[1721186908207,14.88,160.58,160.52,1.24566671]
[1721186908519,14.88,160.58,160.53,14.88]
[1721186910118,14.88,160.57,160.52,14.88]
[1721186911322,14.88,160.58,160.53,16.12562781]
[1721186911500,14.88,160.59,160.53,1.24562781]
[1721186911705,14.88,160.59,160.54,14.88]
[1721186911922,14.88,160.59,160.55,1.24553065]
[1721186913326,6.2263,160.61,160.55,1.24553065]
[1721186913517,14.88,160.59,160.55,1.24553065]
[1721186914520,21.1072,160.59,160.53,14.88]
[1721186914706,14.88,160.57,160.51,15.9355]
[1721186914898,14.88,160.56,160.51,30.8155]
[1721186915201,18.69,160.6,160.51,15.9355]
[1721186915403,14.88,160.54,160.51,15.9355]
[1721186919241,14.88,160.55,160.51,15.9355]
[1721186919722,14.88,160.54,160.51,15.9355]
[1721186919922,14.88,160.53,160.5,9.55354438]
[1721186920303,14.88,160.52,160.5,9.55354438]
[1721186921812,14.88,160.53,160.5,9.55354438]
[1721186922221,14.88,160.54,160.5,9.55354438]
[1721186922418,20.0,160.53,160.5,10.79951137]
[1721186923119,6.3975,160.58,160.5,25.67951137]
[1721186923318,14.88,160.56,160.51,14.88]
[1721186923521,20.0,160.55,160.51,14.88]
[1721186924215,34.88,160.55,160.5,25.67951137]
[1721186925628,24.9803,160.6,160.51,31.12656744]
[1721186925829,14.88,160.56,160.52,1.24575078]
[1721186926310,14.88,160.57,160.52,16.12575078]
[1721186927236,6.2262,160.62,160.55,14.88]
[1721186927416,14.88,160.6,160.55,14.88]
[1721186927610,14.88,160.59,160.54,14.88]
[1721186928531,14.88,160.58,160.53,14.88]
[1721186928752,14.88,160.57,160.52,14.88]
[1721186929031,14.88,160.57,160.52,16.12575863]
[1721186929222,14.88,160.55,160.51,15.0007]
[1721186929828,14.88,160.54,160.51,15.0007]
[1721186931333,14.88,160.53,160.51,15.0007]
[1721186931832,14.88,160.54,160.51,15.0007]
[1721186932526,33.57,160.53,160.5,9.55354438]
[1721186932728,14.88,160.51,160.5,9.55354438]
[1721186939749,24.9486,160.55,160.5,9.55354438]
[1721186940036,14.88,160.51,160.5,9.55354438]
[1721186940733,0.17,160.54,160.5,9.55354438]
[1721186940922,14.88,160.52,160.5,9.55354438]
[1721186943238,14.88,160.53,160.5,9.55354438]
[1721186943930,14.88,160.52,160.5,9.55354438]
[1721186944337,14.88,160.51,160.5,9.55354438]
[1721186946639,14.88,160.52,160.5,9.55354438]
[1721186947438,14.88,160.51,160.5,9.55354438]
[1721186949337,14.88,160.52,160.5,9.55354438]
[1721186950844,25.2886,160.55,160.5,9.55354438]
[1721186951148,14.88,160.53,160.5,9.55354438]
[1721186951641,25.2886,160.55,160.5,9.55354438]
[1721186951642,14.88,160.54,160.5,9.55354438]
[1721186952027,14.88,160.53,160.5,9.55354438]
[1721186954329,14.88,160.54,160.5,9.55354438]
[1721186955047,14.88,160.53,160.5,9.55354438]
[1721186956331,6.2283,160.56,160.5,9.55354438]
[1721186956532,14.88,160.53,160.5,9.55354438]
[1721186960430,14.88,160.52,160.5,9.55354438]
[1721186961335,6.2286,160.55,160.5,9.55354438]
[1721186961531,14.88,160.52,160.5,9.55354438]
[1721186963253,14.88,160.53,160.5,9.55354438]
[1721186964449,14.88,160.54,160.5,9.55354438]
[1721186964750,14.88,160.53,160.5,9.55354438]
[1721186965952,14.88,160.51,160.5,9.55354438]
[1721186967353,14.88,160.52,160.5,9.55354438]
[1721186967539,14.88,160.51,160.5,9.55354438]
[1721186973165,6.2294,160.53,160.5,9.55354438]
[1721186973466,34.88,160.52,160.5,9.55354438]
[1721186973642,14.88,160.52,160.5,9.55354438]
[1721186973838,6.2286,160.55,160.5,9.55354438]
[1721186974042,14.88,160.53,160.5,9.55354438]
[1721186974657,6.2286,160.55,160.5,9.55354438]
[1721186974866,20.0,160.54,160.5,9.55354438]
[1721186975047,34.88,160.54,160.5,9.55354438]
[1721186975241,34.88,160.54,160.5,10.79948189]
[1721186975935,14.88,160.53,160.5,9.55354438]
[1721186976378,21.1094,160.53,160.5,9.55354438]
[1721186976664,14.88,160.53,160.5,9.55354438]
[1721186976963,14.88,160.51,160.5,9.55354438]
[1721186978842,6.2293,160.53,160.5,9.55354438]
[1721186979038,14.88,160.51,160.5,9.55354438]
[1721186982447,21.1101,160.51,160.5,9.55354438]
[1721186983271,14.88,160.51,160.5,9.55354438]
[1721186984374,41.2801,160.51,160.5,9.55354438]
[1721186984565,41.4501,160.51,160.5,9.55354438]
[1721186986665,60.1701,160.51,160.5,9.55354438]
[1721186990154,41.4501,160.51,160.5,9.55354438]
[1721186990353,41.1101,160.51,160.5,9.55354438]
[1721186996954,41.4501,160.51,160.5,9.55354438]
[1721187000264,18.72,160.54,160.5,9.55354438]
[1721187000464,14.88,160.51,160.5,9.55354438]
[1721187001485,6.2294,160.53,160.5,9.55354438]
[1721187001978,34.88,160.52,160.5,9.55354438]
[1721187003959,20.0,160.52,160.5,9.55354438]
[1721187004161,34.88,160.52,160.5,9.55354438]
[1721187004369,20.0,160.52,160.5,9.55354438]
[1721187004571,34.88,160.52,160.5,9.55354438]
[1721187004779,41.1097,160.52,160.5,9.55354438]
[1721187005197,21.1101,160.51,160.5,9.55354438]
[1721187005867,41.2801,160.51,160.5,9.55354438]
[1721187006077,41.4501,160.51,160.5,9.55354438]
[1721187006879,60.1701,160.51,160.5,9.55354438]
[1721187010686,45.2901,160.51,160.5,9.55354438]
[1721187010887,60.1701,160.51,160.5,9.55354438]
[1721187011589,41.4501,160.51,160.5,9.55354438]
[1721187017589,6.2294,160.53,160.5,9.55354438]
[1721187017774,14.88,160.51,160.5,9.55354438]
[1721187018194,6.2294,160.53,160.5,9.55354438]
[1721187018372,14.88,160.52,160.5,9.55354438]
[1721187018571,6.2293,160.54,160.5,9.55354438]
[1721187018813,14.88,160.52,160.5,9.55354438]
[1721187019176,14.88,160.53,160.5,9.55354438]
[1721187019905,14.88,160.52,160.5,9.55354438]
[1721187020086,14.88,160.51,160.5,9.55354438]
[1721187021379,6.2289,160.55,160.5,9.55354438]
[1721187021580,14.88,160.53,160.5,9.55354438]
[1721187021902,14.88,160.52,160.5,9.55354438]
[1721187024206,6.2286,160.55,160.5,9.55354438]
[1721187024383,14.88,160.53,160.5,9.55354438]
[1721187024993,34.88,160.54,160.5,9.55354438]
[1721187026101,20.0,160.54,160.5,9.55354438]
[1721187026302,14.88,160.54,160.5,9.55354438]
[1721187026498,14.88,160.53,160.5,9.55354438]
[1721187026880,14.88,160.55,160.5,9.55354438]
[1721187027302,14.88,160.55,160.5,24.43354438]